[Event "Titled Tuesday Blitz February 14 Late 2023"]
[White "Koellner, Ruben Gideon"]
[Black "Grot, Blazej"]
[WhiteFideId "12993093"]
[BlackFideId "21835845"]
[WhiteElo "2426"]
[BlackElo "1990"]
[Result "1-0"]
[Round "03"]
[TimeControl "180+2"]
[Date "2023.02.14"]
[WhiteClock "0:00:10"]
[BlackClock "0:00:03"]

1. d4 {[%clk 0:03:00]}  d5 {[%clk 0:02:58]} 2. Nf3 {[%clk 0:03:01]}  Nf6 {[%clk 0:02:57]} 3. Nbd2 {[%clk 0:03:00]}  c6 {[%clk 0:02:57]} 4. e3 {[%clk 0:03:01]}  e6 {[%clk 0:02:57]} 5. Bd3 {[%clk 0:03:00]}  Bd6 {[%clk 0:02:57]} 6. O-O {[%clk 0:03:01]}  Qe7 {[%clk 0:02:58]} 7. e4 {[%clk 0:03:01]}  dxe4 {[%clk 0:02:58]} 8. Nxe4 {[%clk 0:03:02]}  Nxe4 {[%clk 0:02:58]} 9. Bxe4 {[%clk 0:03:03]}  Nd7 {[%clk 0:02:59]} 10. c3 {[%clk 0:03:04]}  Nf6 {[%clk 0:02:59]} 11. Bc2 {[%clk 0:03:04]}  h6 {[%clk 0:02:59]} 12. Re1 {[%clk 0:03:05]}  O-O {[%clk 0:02:59]} 13. Qe2 {[%clk 0:03:05]}  Bd7 {[%clk 0:02:59]} 14. Ne5 {[%clk 0:03:04]}  Bxe5 {[%clk 0:02:57]} 15. dxe5 {[%clk 0:03:05]}  Nd5 {[%clk 0:02:57]} 16. a3 {[%clk 0:03:05]}  Rfd8 {[%clk 0:02:43]} 17. c4 {[%clk 0:03:02]}  Nc7 {[%clk 0:02:37]} 18. Qe4 {[%clk 0:03:02]}  f5 {[%clk 0:02:35]} 19. exf6 {[%clk 0:03:02]}  Qxf6 {[%clk 0:02:36]} 20. Re3 {[%clk 0:02:56]}  Qf5 {[%clk 0:02:07]} 21. g4 {[%clk 0:02:40]}  Qxe4 {[%clk 0:02:01]} 22. Bxe4 {[%clk 0:02:41]}  Ne8 {[%clk 0:02:00]} 23. h3 {[%clk 0:02:27]}  Nd6 {[%clk 0:01:56]} 24. Bd3 {[%clk 0:02:26]}  Rf8 {[%clk 0:01:52]} 25. b4 {[%clk 0:02:20]}  Rae8 {[%clk 0:01:41]} 26. Bb2 {[%clk 0:02:19]}  Nf7 {[%clk 0:01:30]} 27. Rae1 {[%clk 0:02:04]}  Ng5 {[%clk 0:01:28]} 28. Kg2 {[%clk 0:02:02]}  e5 {[%clk 0:01:22]} 29. Rxe5 {[%clk 0:01:37]}  Rxe5 {[%clk 0:00:50]} 30. Rxe5 {[%clk 0:01:38]}  Nxh3 {[%clk 0:00:40]} 31. Kg3 {[%clk 0:00:53]}  Ng5 {[%clk 0:00:19]} 32. f4 {[%clk 0:00:45]}  Ne6 {[%clk 0:00:15]} 33. f5 {[%clk 0:00:36]}  Ng5 {[%clk 0:00:15]} 34. c5 {[%clk 0:00:24]}  Re8 {[%clk 0:00:15]} 35. Bc4+ {[%clk 0:00:24]}  Kf8 {[%clk 0:00:15]} 36. Kf4 {[%clk 0:00:23]}  Rxe5 {[%clk 0:00:14]} 37. Bxe5 {[%clk 0:00:24]}  Nf7 {[%clk 0:00:09]} 38. Bb8 {[%clk 0:00:18]}  a6 {[%clk 0:00:09]} 39. a4 {[%clk 0:00:17]}  Ke8 {[%clk 0:00:07]} 40. a5 {[%clk 0:00:16]}  Ng5 {[%clk 0:00:07]} 41. Be5 {[%clk 0:00:15]}  Kf8 {[%clk 0:00:03]} 42. Bd6+ {[%clk 0:00:15]}  Ke8 {[%clk 0:00:04]} 43. Ke5 {[%clk 0:00:14]}  Nf7+ {[%clk 0:00:04]} 44. Kd4 {[%clk 0:00:13]}  Nxd6 {[%clk 0:00:03]} 45. cxd6 {[%clk 0:00:13]}  h5 {[%clk 0:00:03]} 46. gxh5 {[%clk 0:00:09]}  Bxf5 {[%clk 0:00:03]} 47. Ke5 {[%clk 0:00:10]}  Bg4 {[%clk 0:00:03]} 48. Be6 {[%clk 0:00:09]}  Bxh5 {[%clk 0:00:03]} 49. Bc8 {[%clk 0:00:09]}  Kd8 {[%clk 0:00:03]} 50. Bxb7 {[%clk 0:00:09]}  c5 {[%clk 0:00:02]} 51. bxc5 {[%clk 0:00:09]}  Be8 {[%clk 0:00:02]} 52. c6 {[%clk 0:00:09]}  g5 {[%clk 0:00:02]} 53. c7+ {[%clk 0:00:09]}  Kd7 {[%clk 0:00:03]} 54. c8=Q# {[%clk 0:00:10]} 1-0


[Site "https://www.chess.com"]

[Event "Titled Tuesday Blitz February 14 Late 2023"]
[White "CheckBits"]
[Black "Janaszak, Dawid"]
[BlackFideId "1119206"]
[WhiteElo "2468"]
[BlackElo "2316"]
[Result "0-1"]
[Round "03"]
[TimeControl "180+2"]
[Date "2023.02.14"]
[WhiteClock "0:00:01"]
[BlackClock "0:00:35"]

1. e4 {[%clk 0:02:55]}  c5 {[%clk 0:03:00]} 2. Nf3 {[%clk 0:02:54]}  Nc6 {[%clk 0:03:00]} 3. Bb5 {[%clk 0:02:53]}  e5 {[%clk 0:03:00]} 4. O-O {[%clk 0:02:53]}  Nge7 {[%clk 0:03:00]} 5. Re1 {[%clk 0:02:53]}  g6 {[%clk 0:02:59]} 6. a4 {[%clk 0:02:42]}  Bg7 {[%clk 0:02:59]} 7. c3 {[%clk 0:02:39]}  O-O {[%clk 0:02:59]} 8. Na3 {[%clk 0:02:37]}  d6 {[%clk 0:02:55]} 9. d3 {[%clk 0:02:34]}  h6 {[%clk 0:02:46]} 10. h3 {[%clk 0:02:29]}  f5 {[%clk 0:02:45]} 11. exf5 {[%clk 0:02:28]}  Nxf5 {[%clk 0:02:37]} 12. Bxc6 {[%clk 0:02:20]}  bxc6 {[%clk 0:02:37]} 13. Nc2 {[%clk 0:02:15]}  Nh4 {[%clk 0:02:32]} 14. Nxh4 {[%clk 0:02:07]}  Qxh4 {[%clk 0:02:33]} 15. Be3 {[%clk 0:02:03]}  Rb8 {[%clk 0:02:32]} 16. b4 {[%clk 0:02:01]}  cxb4 {[%clk 0:02:23]} 17. cxb4 {[%clk 0:01:54]}  Rb7 {[%clk 0:02:09]} 18. d4 {[%clk 0:01:49]}  Rbf7 {[%clk 0:02:07]} 19. Re2 {[%clk 0:01:24]}  Bxh3 {[%clk 0:02:00]} 20. gxh3 {[%clk 0:01:18]}  Qxh3 {[%clk 0:02:00]} 21. Qf1 {[%clk 0:01:16]}  Qg4+ {[%clk 0:01:58]} 22. Kh1 {[%clk 0:01:10]}  Rf3 {[%clk 0:01:56]} 23. Qg2 {[%clk 0:01:01]}  Rh3+ {[%clk 0:01:33]} 24. Kg1 {[%clk 0:01:01]}  Qxe2 {[%clk 0:01:23]} 25. Qxh3 {[%clk 0:01:01]}  Qxc2 {[%clk 0:01:15]} 26. Qe6+ {[%clk 0:00:42]}  Kh7 {[%clk 0:01:13]} 27. Qxd6 {[%clk 0:00:42]}  exd4 {[%clk 0:00:52]} 28. Bxd4 {[%clk 0:00:41]}  Qd2 {[%clk 0:00:50]} 29. Bc5 {[%clk 0:00:07]}  Qxd6 {[%clk 0:00:39]} 30. Bxd6 {[%clk 0:00:06]}  Rd8 {[%clk 0:00:40]} 31. Be7 {[%clk 0:00:02]}  Re8 {[%clk 0:00:38]} 32. Re1 {[%clk 0:00:02]}  Bf6 {[%clk 0:00:36]} 33. Re6 {[%clk 0:00:02]}  Bxe7 {[%clk 0:00:34]} 34. Rxc6 {[%clk 0:00:02]}  Bxb4 {[%clk 0:00:34]} 35. Rc7+ {[%clk 0:00:02]}  Re7 {[%clk 0:00:35]} 36. Rc8 {[%clk 0:00:01]}  a5 {[%clk 0:00:35]} 0-1


[Site "https://www.chess.com"]

[Event "Titled Tuesday Blitz February 14 Late 2023"]
[White "Forgacs, Attila Jr."]
[Black "Marosi, Levente"]
[WhiteFideId "773654"]
[BlackFideId "747181"]
[WhiteElo "2264"]
[BlackElo "2303"]
[Result "0-1"]
[Round "03"]
[TimeControl "180+2"]
[Date "2023.02.14"]
[WhiteClock "0:00:43"]
[BlackClock "0:01:36"]

1. e4 {[%clk 0:03:00]}  c6 {[%clk 0:02:59]} 2. d4 {[%clk 0:03:00]}  d5 {[%clk 0:03:00]} 3. Nd2 {[%clk 0:03:01]}  dxe4 {[%clk 0:03:00]} 4. Nxe4 {[%clk 0:03:01]}  Bf5 {[%clk 0:03:00]} 5. Ng3 {[%clk 0:03:01]}  Bg6 {[%clk 0:03:01]} 6. h4 {[%clk 0:03:02]}  h6 {[%clk 0:03:01]} 7. Nf3 {[%clk 0:03:03]}  e6 {[%clk 0:03:02]} 8. h5 {[%clk 0:03:03]}  Bh7 {[%clk 0:03:02]} 9. Ne5 {[%clk 0:03:00]}  Nd7 {[%clk 0:03:01]} 10. f4 {[%clk 0:03:00]}  Ngf6 {[%clk 0:03:00]} 11. Bd3 {[%clk 0:02:56]}  Bxd3 {[%clk 0:03:00]} 12. Qxd3 {[%clk 0:02:57]}  c5 {[%clk 0:03:00]} 13. b3 {[%clk 0:02:15]}  cxd4 {[%clk 0:02:51]} 14. Nxf7 {[%clk 0:02:15]}  Kxf7 {[%clk 0:02:45]} 15. Qg6+ {[%clk 0:02:15]}  Kg8 {[%clk 0:02:45]} 16. O-O {[%clk 0:01:56]}  Qe8 {[%clk 0:02:42]} 17. Qd3 {[%clk 0:01:56]}  Nxh5 {[%clk 0:02:37]} 18. Nxh5 {[%clk 0:01:49]}  Qxh5 {[%clk 0:02:38]} 19. f5 {[%clk 0:01:45]}  Bd6 {[%clk 0:02:03]} 20. Bf4 {[%clk 0:01:38]}  Bxf4 {[%clk 0:02:01]} 21. Rxf4 {[%clk 0:01:39]}  e5 {[%clk 0:02:01]} 22. Rf3 {[%clk 0:01:32]}  Nf6 {[%clk 0:01:59]} 23. Rg3 {[%clk 0:01:18]}  Rd8 {[%clk 0:01:56]} 24. Qc4+ {[%clk 0:01:09]}  Qf7 {[%clk 0:01:55]} 25. Qe2 {[%clk 0:01:00]}  e4 {[%clk 0:01:53]} 26. Rg6 {[%clk 0:00:58]}  Kh7 {[%clk 0:01:52]} 27. Rf1 {[%clk 0:00:54]}  d3 {[%clk 0:01:51]} 28. cxd3 {[%clk 0:00:53]}  exd3 {[%clk 0:01:52]} 29. Qd2 {[%clk 0:00:52]}  Rhe8 {[%clk 0:01:51]} 30. g4 {[%clk 0:00:51]}  Re2 {[%clk 0:01:50]} 31. Qf4 {[%clk 0:00:50]}  Qd5 {[%clk 0:01:38]} 32. Qg3 {[%clk 0:00:45]}  Qd4+ {[%clk 0:01:35]} 33. Kh1 {[%clk 0:00:44]}  Qe4+ {[%clk 0:01:35]} 34. Kg1 {[%clk 0:00:44]}  Qe3+ {[%clk 0:01:36]} 35. Qxe3 {[%clk 0:00:43]}  Rxe3 {[%clk 0:01:36]} 0-1


[Site "https://www.chess.com"]

[Event "Titled Tuesday Blitz February 14 Late 2023"]
[White "Ferreira, Vitor Hugo Vieira"]
[Black "Poliakova, Varvara"]
[WhiteFideId "2119765"]
[BlackFideId "13518313"]
[WhiteElo "2128"]
[BlackElo "2010"]
[Result "0-1"]
[Round "03"]
[TimeControl "180+2"]
[Date "2023.02.14"]
[WhiteClock "0:01:25"]
[BlackClock "0:01:24"]

1. Nf3 {[%clk 0:03:00]}  f5 {[%clk 0:02:57]} 2. e4 {[%clk 0:03:00]}  fxe4 {[%clk 0:02:56]} 3. Ng5 {[%clk 0:03:00]}  Nf6 {[%clk 0:02:52]} 4. d3 {[%clk 0:03:00]}  d6 {[%clk 0:02:52]} 5. dxe4 {[%clk 0:02:48]}  Nc6 {[%clk 0:02:47]} 6. Nc3 {[%clk 0:02:40]}  h6 {[%clk 0:02:28]} 7. Nf3 {[%clk 0:02:38]}  e5 {[%clk 0:02:28]} 8. Bc4 {[%clk 0:02:33]}  Bg4 {[%clk 0:02:21]} 9. h3 {[%clk 0:02:33]}  Bh5 {[%clk 0:02:18]} 10. Be3 {[%clk 0:02:31]}  Qd7 {[%clk 0:02:15]} 11. Qd2 {[%clk 0:02:28]}  O-O-O {[%clk 0:02:09]} 12. O-O-O {[%clk 0:02:28]}  Kb8 {[%clk 0:02:05]} 13. g4 {[%clk 0:02:23]}  Bf7 {[%clk 0:02:05]} 14. Bb5 {[%clk 0:02:23]}  a6 {[%clk 0:02:01]} 15. Ba4 {[%clk 0:02:23]}  Bg6 {[%clk 0:01:53]} 16. Nh4 {[%clk 0:02:10]}  Nxe4 {[%clk 0:01:52]} 17. Nxe4 {[%clk 0:01:30]}  Bxe4 {[%clk 0:01:53]} 18. f3 {[%clk 0:01:31]}  Bh7 {[%clk 0:01:49]} 19. Bf2 {[%clk 0:01:30]}  Be7 {[%clk 0:01:48]} 20. Qe3 {[%clk 0:01:30]}  Bg5 {[%clk 0:01:24]} 21. f4 {[%clk 0:01:24]}  Bxf4 {[%clk 0:01:23]} 22. Qxf4 {[%clk 0:01:25]}  exf4 {[%clk 0:01:24]} 0-1


[Site "https://www.chess.com"]

[Event "Titled Tuesday Blitz February 14 Late 2023"]
[White "Martynov, Pavel"]
[Black "Haszon, David"]
[WhiteFideId "4101260"]
[BlackFideId "733610"]
[WhiteElo "2414"]
[BlackElo "2264"]
[Result "1-0"]
[Round "03"]
[TimeControl "180+2"]
[Date "2023.02.14"]
[WhiteClock "0:00:08"]
[BlackClock "0:00:14"]

1. e4 {[%clk 0:03:00]}  c5 {[%clk 0:02:56]} 2. Nf3 {[%clk 0:03:00]}  Nc6 {[%clk 0:02:56]} 3. Bb5 {[%clk 0:03:00]}  g6 {[%clk 0:02:50]} 4. O-O {[%clk 0:03:00]}  Bg7 {[%clk 0:02:50]} 5. Re1 {[%clk 0:03:00]}  e5 {[%clk 0:02:49]} 6. c3 {[%clk 0:02:59]}  Nge7 {[%clk 0:02:49]} 7. Na3 {[%clk 0:02:57]}  a6 {[%clk 0:02:48]} 8. Bf1 {[%clk 0:02:56]}  O-O {[%clk 0:02:48]} 9. Nc2 {[%clk 0:02:52]}  d5 {[%clk 0:02:45]} 10. exd5 {[%clk 0:02:51]}  Nxd5 {[%clk 0:02:45]} 11. h3 {[%clk 0:02:52]}  Re8 {[%clk 0:02:37]} 12. d3 {[%clk 0:02:49]}  b5 {[%clk 0:02:36]} 13. d4 {[%clk 0:02:25]}  exd4 {[%clk 0:02:19]} 14. Rxe8+ {[%clk 0:02:25]}  Qxe8 {[%clk 0:02:17]} 15. cxd4 {[%clk 0:02:25]}  c4 {[%clk 0:02:16]} 16. a4 {[%clk 0:02:19]}  Bb7 {[%clk 0:02:15]} 17. Ne3 {[%clk 0:02:14]}  Nxe3 {[%clk 0:02:14]} 18. Bxe3 {[%clk 0:02:13]}  Nb4 {[%clk 0:02:11]} 19. Ne5 {[%clk 0:01:31]}  Nd5 {[%clk 0:02:01]} 20. axb5 {[%clk 0:00:45]}  Nxe3 {[%clk 0:01:53]} 21. fxe3 {[%clk 0:00:44]}  Bxe5 {[%clk 0:01:48]} 22. bxa6 {[%clk 0:00:37]}  Rxa6 {[%clk 0:01:08]} 23. Rxa6 {[%clk 0:00:33]}  Bxa6 {[%clk 0:00:51]} 24. dxe5 {[%clk 0:00:33]}  Qxe5 {[%clk 0:00:52]} 25. Qd4 {[%clk 0:00:34]}  Qe6 {[%clk 0:00:45]} 26. e4 {[%clk 0:00:30]}  h5 {[%clk 0:00:45]} 27. Be2 {[%clk 0:00:28]}  Kh7 {[%clk 0:00:43]} 28. Kf2 {[%clk 0:00:18]}  Bb5 {[%clk 0:00:42]} 29. b3 {[%clk 0:00:15]}  Bc6 {[%clk 0:00:20]} 30. Bxc4 {[%clk 0:00:15]}  Qe7 {[%clk 0:00:18]} 31. Bd5 {[%clk 0:00:13]}  Bb5 {[%clk 0:00:16]} 32. Qe3 {[%clk 0:00:09]}  Qh4+ {[%clk 0:00:15]} 33. Qg3 {[%clk 0:00:09]}  Qf6+ {[%clk 0:00:15]} 34. Qf3 {[%clk 0:00:09]}  Qb2+ {[%clk 0:00:16]} 35. Kg3 {[%clk 0:00:10]}  Qe5+ {[%clk 0:00:15]} 36. Kf2 {[%clk 0:00:08]}  Qb2+ {[%clk 0:00:15]} 37. Kg3 {[%clk 0:00:08]}  Qc1 {[%clk 0:00:15]} 38. Qxf7+ {[%clk 0:00:08]}  Kh6 {[%clk 0:00:15]} 39. Qf4+ {[%clk 0:00:08]}  Qxf4+ {[%clk 0:00:13]} 40. Kxf4 {[%clk 0:00:09]}  g5+ {[%clk 0:00:14]} 41. Kf5 {[%clk 0:00:08]}  Bd7+ {[%clk 0:00:14]} 42. Kf6 {[%clk 0:00:09]}  g4 {[%clk 0:00:14]} 43. hxg4 {[%clk 0:00:08]}  Bxg4 {[%clk 0:00:14]} 44. g3 {[%clk 0:00:08]}  Kh7 {[%clk 0:00:14]} 45. e5 {[%clk 0:00:08]} 1-0


[Site "https://www.chess.com"]

[Event "Titled Tuesday Blitz February 14 Late 2023"]
[White "Vaglio Mattey, Emanuel"]
[Black "Vovk, Orest"]
[WhiteFideId "6504167"]
[BlackFideId "14113490"]
[WhiteElo "2155"]
[BlackElo "2315"]
[Result "0-1"]
[Round "03"]
[TimeControl "180+2"]
[Date "2023.02.14"]
[WhiteClock "0:00:10"]
[BlackClock "0:00:49"]

1. d4 {[%clk 0:02:57]}  h6 {[%clk 0:02:50]} 2. c4 {[%clk 0:02:53]}  g5 {[%clk 0:02:50]} 3. h4 {[%clk 0:02:52]}  g4 {[%clk 0:02:50]} 4. g3 {[%clk 0:02:51]}  Bg7 {[%clk 0:02:50]} 5. Bg2 {[%clk 0:02:52]}  c5 {[%clk 0:02:50]} 6. d5 {[%clk 0:02:53]}  d6 {[%clk 0:02:47]} 7. Nc3 {[%clk 0:02:53]}  Bxc3+ {[%clk 0:02:47]} 8. bxc3 {[%clk 0:02:53]}  Qa5 {[%clk 0:02:47]} 9. Bd2 {[%clk 0:02:52]}  Nf6 {[%clk 0:02:45]} 10. e4 {[%clk 0:02:52]}  Nbd7 {[%clk 0:02:45]} 11. Ne2 {[%clk 0:02:35]}  Ne5 {[%clk 0:02:44]} 12. Nf4 {[%clk 0:02:35]}  Nxc4 {[%clk 0:02:40]} 13. O-O {[%clk 0:02:36]}  Nxd2 {[%clk 0:02:28]} 14. Qxd2 {[%clk 0:02:37]}  Nd7 {[%clk 0:02:28]} 15. Rfe1 {[%clk 0:02:35]}  Ne5 {[%clk 0:02:28]} 16. Nd3 {[%clk 0:02:35]}  Nxd3 {[%clk 0:02:22]} 17. Qxd3 {[%clk 0:02:36]}  f6 {[%clk 0:02:22]} 18. e5 {[%clk 0:02:30]}  fxe5 {[%clk 0:02:20]} 19. Qg6+ {[%clk 0:02:28]}  Kd8 {[%clk 0:02:20]} 20. Qg7 {[%clk 0:02:27]}  Re8 {[%clk 0:02:20]} 21. Qxh6 {[%clk 0:02:17]}  Qxc3 {[%clk 0:02:20]} 22. Rac1 {[%clk 0:02:17]}  Qa3 {[%clk 0:02:15]} 23. Qg5 {[%clk 0:02:07]}  Bd7 {[%clk 0:02:13]} 24. h5 {[%clk 0:01:58]}  Kc7 {[%clk 0:02:12]} 25. Rc2 {[%clk 0:01:18]}  b6 {[%clk 0:02:12]} 26. Rxe5 {[%clk 0:01:04]}  dxe5 {[%clk 0:01:57]} 27. Qxe5+ {[%clk 0:01:05]}  Kb7 {[%clk 0:01:57]} 28. d6+ {[%clk 0:01:00]}  Bc6 {[%clk 0:01:57]} 29. Bxc6+ {[%clk 0:00:29]}  Kxc6 {[%clk 0:01:58]} 30. Qe4+ {[%clk 0:00:30]}  Kxd6 {[%clk 0:01:45]} 31. Rd2+ {[%clk 0:00:26]}  Kc7 {[%clk 0:01:45]} 32. Qe5+ {[%clk 0:00:25]}  Kb7 {[%clk 0:01:40]} 33. Rd7+ {[%clk 0:00:17]}  Ka6 {[%clk 0:01:37]} 34. Qe2+ {[%clk 0:00:18]}  b5 {[%clk 0:01:19]} 35. Rd3 {[%clk 0:00:13]}  Qc1+ {[%clk 0:01:15]} 36. Kg2 {[%clk 0:00:14]}  Rad8 {[%clk 0:01:04]} 37. Qe6+ {[%clk 0:00:11]}  Ka5 {[%clk 0:01:03]} 38. Re3 {[%clk 0:00:12]}  Rd1 {[%clk 0:00:52]} 39. f4 {[%clk 0:00:09]}  Rg1+ {[%clk 0:00:50]} 40. Kh2 {[%clk 0:00:09]}  Rh1+ {[%clk 0:00:49]} 41. Kg2 {[%clk 0:00:10]}  Qg1# {[%clk 0:00:49]} 0-1


[Site "https://www.chess.com"]

[Event "Titled Tuesday Blitz February 14 Late 2023"]
[White "Fan_Of_Chucky"]
[Black "Moral Garcia, Serafin"]
[BlackFideId "2201925"]
[WhiteElo "2398"]
[BlackElo "2238"]
[Result "1-0"]
[Round "03"]
[TimeControl "180+2"]
[Date "2023.02.14"]
[WhiteClock "0:00:04"]
[BlackClock "0:00:20"]

1. d4 {[%clk 0:03:00]}  Nf6 {[%clk 0:02:59]} 2. c4 {[%clk 0:03:01]}  g6 {[%clk 0:02:58]} 3. Nf3 {[%clk 0:03:01]}  Bg7 {[%clk 0:02:58]} 4. g3 {[%clk 0:03:02]}  O-O {[%clk 0:02:56]} 5. Bg2 {[%clk 0:03:03]}  d5 {[%clk 0:02:56]} 6. O-O {[%clk 0:03:04]}  dxc4 {[%clk 0:02:56]} 7. Na3 {[%clk 0:03:04]}  c3 {[%clk 0:02:56]} 8. bxc3 {[%clk 0:03:04]}  c5 {[%clk 0:02:56]} 9. Re1 {[%clk 0:03:02]}  Nc6 {[%clk 0:02:51]} 10. Bb2 {[%clk 0:02:57]}  Qb6 {[%clk 0:02:37]} 11. Nc4 {[%clk 0:02:55]}  Qa6 {[%clk 0:02:37]} 12. Nfe5 {[%clk 0:02:48]}  Be6 {[%clk 0:02:29]} 13. Nxc6 {[%clk 0:02:40]}  bxc6 {[%clk 0:02:27]} 14. Ne5 {[%clk 0:02:41]}  Rac8 {[%clk 0:02:11]} 15. e4 {[%clk 0:02:30]}  Rfd8 {[%clk 0:02:11]} 16. Qc2 {[%clk 0:02:27]}  Nd7 {[%clk 0:01:59]} 17. Nd3 {[%clk 0:01:48]}  Bc4 {[%clk 0:01:50]} 18. Nf4 {[%clk 0:01:40]}  cxd4 {[%clk 0:01:46]} 19. cxd4 {[%clk 0:01:36]}  e5 {[%clk 0:01:46]} 20. dxe5 {[%clk 0:01:29]}  Nxe5 {[%clk 0:01:42]} 21. a3 {[%clk 0:01:13]}  Nd3 {[%clk 0:01:38]} 22. Nxd3 {[%clk 0:01:09]}  Bxd3 {[%clk 0:01:37]} 23. Qc1 {[%clk 0:01:09]}  c5 {[%clk 0:01:34]} 24. Bxg7 {[%clk 0:01:07]}  Kxg7 {[%clk 0:01:32]} 25. Qc3+ {[%clk 0:01:08]}  Qf6 {[%clk 0:01:30]} 26. e5 {[%clk 0:01:01]}  Qe6 {[%clk 0:01:25]} 27. Bf1 {[%clk 0:00:53]}  c4 {[%clk 0:01:24]} 28. Rad1 {[%clk 0:00:50]}  Bxf1 {[%clk 0:01:23]} 29. Rxf1 {[%clk 0:00:51]}  Rxd1 {[%clk 0:01:19]} 30. Rxd1 {[%clk 0:00:52]}  Rc5 {[%clk 0:01:19]} 31. f4 {[%clk 0:00:50]}  Rb5 {[%clk 0:01:15]} 32. Rd6 {[%clk 0:00:39]}  Qh3 {[%clk 0:00:59]} 33. Rd1 {[%clk 0:00:39]}  Rb3 {[%clk 0:00:44]} 34. Qd4 {[%clk 0:00:26]}  Qe6 {[%clk 0:00:37]} 35. Rc1 {[%clk 0:00:22]}  Rxa3 {[%clk 0:00:25]} 36. Qxc4 {[%clk 0:00:16]}  Qb6+ {[%clk 0:00:25]} 37. Qc5 {[%clk 0:00:15]}  Qb2 {[%clk 0:00:25]} 38. Qc2 {[%clk 0:00:12]}  Qd4+ {[%clk 0:00:23]} 39. Qf2 {[%clk 0:00:12]}  Qe4 {[%clk 0:00:21]} 40. e6 {[%clk 0:00:08]}  Qxe6 {[%clk 0:00:19]} 41. Qb2+ {[%clk 0:00:07]}  Qf6 {[%clk 0:00:19]} 42. Qxa3 {[%clk 0:00:08]}  Qd4+ {[%clk 0:00:19]} 43. Kg2 {[%clk 0:00:04]}  h5 {[%clk 0:00:20]} 44. Qc3 {[%clk 0:00:04]} 1-0


[Site "https://www.chess.com"]

[Event "Titled Tuesday Blitz February 14 Late 2023"]
[White "AyMitecK"]
[Black "Fernandez Siles, Luis"]
[BlackFideId "2209420"]
[WhiteElo "2577"]
[BlackElo "2218"]
[Result "1-0"]
[Round "03"]
[TimeControl "180+2"]
[Date "2023.02.14"]
[WhiteClock "0:02:00"]
[BlackClock "0:00:07"]

1. e4 {[%clk 0:03:00]}  c5 {[%clk 0:02:59]} 2. Nf3 {[%clk 0:03:00]}  Nc6 {[%clk 0:02:59]} 3. Bb5 {[%clk 0:03:00]}  g6 {[%clk 0:02:59]} 4. O-O {[%clk 0:03:00]}  Bg7 {[%clk 0:02:59]} 5. Re1 {[%clk 0:03:01]}  Nf6 {[%clk 0:02:59]} 6. e5 {[%clk 0:03:01]}  Nd5 {[%clk 0:02:59]} 7. Nc3 {[%clk 0:03:02]}  Nc7 {[%clk 0:02:59]} 8. Bxc6 {[%clk 0:03:03]}  dxc6 {[%clk 0:02:59]} 9. Ne4 {[%clk 0:03:03]}  b6 {[%clk 0:02:54]} 10. Nf6+ {[%clk 0:03:03]}  Kf8 {[%clk 0:02:54]} 11. Ne4 {[%clk 0:03:04]}  Bg4 {[%clk 0:02:54]} 12. d3 {[%clk 0:03:05]}  Ne6 {[%clk 0:02:47]} 13. Ned2 {[%clk 0:03:02]}  g5 {[%clk 0:02:09]} 14. h3 {[%clk 0:03:00]}  Bh5 {[%clk 0:02:09]} 15. g4 {[%clk 0:02:58]}  Bg6 {[%clk 0:02:08]} 16. Ne4 {[%clk 0:02:58]}  h6 {[%clk 0:02:04]} 17. Ng3 {[%clk 0:02:55]}  Kg8 {[%clk 0:01:34]} 18. h4 {[%clk 0:02:56]}  gxh4 {[%clk 0:01:12]} 19. Nxh4 {[%clk 0:02:56]}  Qd5 {[%clk 0:01:03]} 20. Nhf5 {[%clk 0:02:52]}  Re8 {[%clk 0:00:58]} 21. f4 {[%clk 0:02:28]}  f6 {[%clk 0:00:41]} 22. Nxg7 {[%clk 0:02:10]}  Nxg7 {[%clk 0:00:41]} 23. f5 {[%clk 0:02:09]}  Qd4+ {[%clk 0:00:26]} 24. Kg2 {[%clk 0:02:00]}  Qd5+ {[%clk 0:00:07]} 25. Kf2 {[%clk 0:02:00]} 1-0


[Site "https://www.chess.com"]